[Event "Mistrovství Čech mládeže 2023 - HD14"]
[Site "Harrachov, Czech Republic"]
[Date "2023.10.28"]
[Round "9.3"]
[White "Migalko, Dmitriy"]
[Black "Pogorelskiy, Boris"]
[Result "1/2-1/2"]
[TimeControl "90m + 30s"]
[WhiteElo "1842"]
[BlackElo "1541"]

1. d4 {[%clk 01:30:30]} {[%emt 00:11:37]} Nf6 {[%clk 01:31:17]} {[%emt
00:01:35]} 2. Nf3 {[%clk 01:30:51]} {[%emt 00:00:38]} e6 {[%clk 01:31:04]}
{[%emt 00:00:44]} 3. g3 {[%clk 01:30:15]} {[%emt 00:01:05]} b6 {[%clk
01:31:25]} {[%emt 00:00:10]} 4. Bg2 {[%clk 01:30:08]} {[%emt 00:00:35]} Bb7
{[%clk 01:31:52]} {[%emt 00:00:05]} 5. O-O {[%clk 01:29:50]} {[%emt 00:00:48]}
Be7 {[%clk 01:31:48]} {[%emt 00:00:34]} 6. c4 {[%clk 01:28:17]} {[%emt
00:02:02]} O-O {[%clk 01:31:17]} {[%emt 00:01:00]} 7. Nc3 {[%clk 01:28:10]}
{[%emt 00:00:37]} d5 {[%clk 01:25:45]} {[%emt 00:06:03]} 8. Ne5 {[%clk
01:23:40]} {[%emt 00:04:59]} c6 {[%clk 01:23:34]} {[%emt 00:02:41]} 9. Qc2
{[%clk 01:17:53]} {[%emt 00:06:17]} dxc4 {[%clk 01:23:40]} {[%emt 00:00:24]} 10.
Rd1 {[%clk 01:17:22]} {[%emt 00:01:00]} Nd5 {[%clk 01:20:19]} {[%emt 00:03:52]}
11. Nxc4 {[%clk 01:15:31]} {[%emt 00:02:22]} Nd7 {[%clk 01:19:35]} {[%emt
00:01:15]} 12. e4 {[%clk 01:10:08]} {[%emt 00:05:51]} Nxc3 {[%clk 01:17:23]}
{[%emt 00:02:42]} 13. Qxc3 {[%clk 01:07:08]} {[%emt 00:03:31]} Nf6 {[%clk
01:14:32]} {[%emt 00:03:21]} 14. Bg5 {[%clk 01:04:26]} {[%emt 00:03:09]} Qc7
{[%clk 01:09:09]} {[%emt 00:05:55]} 15. e5 {[%clk 00:49:39]} {[%emt 00:15:17]}
Nd5 {[%clk 01:07:25]} {[%emt 00:02:14]} 16. Bxd5 {[%clk 00:49:44]} {[%emt
00:00:25]} Bxg5 {[%clk 01:07:05]} {[%emt 00:00:51]} 17. Bg2 {[%clk 00:48:53]}
{[%emt 00:01:19]} Be7 {[%clk 01:06:14]} {[%emt 00:01:22]} 18. b4 {[%clk
00:39:45]} {[%emt 00:09:38]} Rfd8 {[%clk 00:59:32]} {[%emt 00:07:12]} 19. Ne3
{[%clk 00:37:25]} {[%emt 00:02:48]} Rac8 {[%clk 00:57:02]} {[%emt 00:03:02]} 20.
Rac1 {[%clk 00:36:29]} {[%emt 00:01:24]} c5 {[%clk 00:54:03]} {[%emt 00:03:31]}
21. bxc5 {[%clk 00:33:43]} {[%emt 00:03:16]} Bxg2 {[%clk 00:54:25]} {[%emt
00:00:09]} 22. Kxg2 {[%clk 00:31:19]} {[%emt 00:02:53]} bxc5 {[%clk 00:54:20]}
{[%emt 00:00:35]} 23. dxc5 {[%clk 00:24:28]} {[%emt 00:07:21]} Qc6+ {[%clk
00:54:28]} {[%emt 00:00:22]} 24. Kg1 {[%clk 00:24:33]} {[%emt 00:00:25]} Rxd1+
{[%clk 00:54:23]} {[%emt 00:00:36]} 25. Rxd1 {[%clk 00:23:41]} {[%emt
00:01:21]} Qxc5 {[%clk 00:54:12]} {[%emt 00:00:41]} 26. Qxc5 {[%clk 00:22:44]}
{[%emt 00:01:28]} Rxc5 {[%clk 00:54:26]} {[%emt 00:00:16]} 27. Rd7 {[%clk
00:22:39]} {[%emt 00:00:33]} Kf8 {[%clk 00:52:08]} {[%emt 00:02:50]} 28. Rxa7
{[%clk 00:22:34]} {[%emt 00:00:35]} Rc1+ {[%clk 00:52:33]} {[%emt 00:00:06]} 29.
Kg2 {[%clk 00:22:49]} {[%emt 00:00:14]} Bc5 {[%clk 00:52:55]} {[%emt 00:00:08]}
30. Ra8+ {[%clk 00:22:35]} {[%emt 00:00:44]} Ke7 {[%clk 00:53:22]} {[%emt
00:00:04]} 31. Kf3 {[%clk 00:21:52]} {[%emt 00:01:12]} Bxe3 {[%clk 00:53:25]}
{[%emt 00:00:28]} 32. Kxe3 {[%clk 00:21:10]} {[%emt 00:01:12]} Re1+ {[%clk
00:53:46]} {[%emt 00:00:08]} 33. Kf4 {[%clk 00:21:11]} {[%emt 00:00:29]} Re2
{[%clk 00:54:09]} {[%emt 00:00:08]} 34. Ra7+ {[%clk 00:21:09]} {[%emt
00:00:32]} Ke8 {[%clk 00:54:20]} {[%emt 00:00:18]} 35. f3 {[%clk 00:19:33]}
{[%emt 00:02:07]} Rxh2 {[%clk 00:54:47]} {[%emt 00:00:03]} 36. a4 {[%clk
00:19:52]} {[%emt 00:00:10]} Re2 {[%clk 00:54:56]} {[%emt 00:00:21]} 37. Ra8+
{[%clk 00:18:06]} {[%emt 00:02:17]} Ke7 {[%clk 00:55:17]} {[%emt 00:00:09]} 38.
Ra7+ {[%clk 00:17:54]} {[%emt 00:00:41]} Ke8 {[%clk 00:55:43]} {[%emt
00:00:04]} 39. Ra5 {[%clk 00:16:53]} {[%emt 00:01:30]} h6 {[%clk 00:55:05]}
{[%emt 00:01:09]} 40. Kg4 {[%clk 00:16:36]} {[%emt 00:00:45]} Re3 {[%clk
00:55:08]} {[%emt 00:00:28]} 41. f4 {[%clk 00:16:16]} {[%emt 00:00:50]} Ra3
{[%clk 00:53:37]} {[%emt 00:02:02]} 42. Ra8+ {[%clk 00:16:05]} {[%emt
00:00:41]} Ke7 {[%clk 00:53:56]} {[%emt 00:00:11]} 43. a5 {[%clk 00:16:10]}
{[%emt 00:00:25]} f5+ {[%emt 00:01:55]} 44. exf6+ {[%clk 00:15:33]} {[%emt
00:01:06]} Kxf6 {[%clk 00:52:52]} {[%emt 00:00:10]} 45. Ra6 {[%clk 00:14:46]}
{[%emt 00:01:17]} h5+ {[%clk 00:49:36]} {[%emt 00:03:46]} 46. Kh4 {[%clk
00:13:39]} {[%emt 00:01:36]} Kf5 {[%clk 00:49:52]} {[%emt 00:00:16]} 47. Ra7
{[%clk 00:12:52]} {[%emt 00:01:17]} g6 {[%clk 00:48:44]} {[%emt 00:01:38]} 48.
Rf7+ {[%clk 00:11:01]} {[%emt 00:02:20]} Ke4 {[%clk 00:49:06]} {[%emt
00:00:09]} 49. Rf6 {[%clk 00:10:20]} {[%emt 00:01:12]} Rxa5 {[%clk 00:49:28]}
{[%emt 00:00:08]} 50. Rxg6 {[%clk 00:10:01]} {[%emt 00:00:48]} Ra6 {[%clk
00:47:52]} {[%emt 00:02:06]} 51. Kxh5 {[%clk 00:09:48]} {[%emt 00:00:43]} Kf5
{[%clk 00:46:02]} {[%emt 00:02:21]} 52. Rg8 {[%clk 00:08:56]} {[%emt 00:01:18]}
Kf6 {[%clk 00:45:35]} {[%emt 00:01:00]} 53. Kg4 {[%clk 00:07:21]} {[%emt
00:02:03]} Ra5 {[%clk 00:45:42]} {[%emt 00:00:26]} 54. Rh8 {[%clk 00:06:39]}
{[%emt 00:01:06]} Kg6 {[%clk 00:45:47]} {[%emt 00:00:31]} 55. Rb8 {[%clk
00:05:53]} {[%emt 00:01:16]} Rc5 {[%clk 00:45:18]} {[%emt 00:00:59]} 56. Rb6
{[%clk 00:05:50]} {[%emt 00:00:33]} Kf6 {[%clk 00:45:34]} {[%emt 00:00:14]} 57.
Ra6 {[%clk 00:06:00]} {[%emt 00:00:20]} Rb5 {[%clk 00:45:54]} {[%emt 00:00:09]}
58. Kh4 {[%clk 00:05:59]} {[%emt 00:00:31]} Rf5 {[%clk 00:45:28]} {[%emt
00:00:56]} 59. Ra8 {[%clk 00:06:03]} {[%emt 00:00:26]} Kg6 {[%clk 00:45:08]}
{[%emt 00:00:50]} 60. Re8 {[%clk 00:05:55]} {[%emt 00:00:34]} Kf6 {[%clk
00:45:01]} {[%emt 00:00:42]} 61. Rf8+ {[%clk 00:05:25]} {[%emt 00:01:00]} Kg6
{[%clk 00:45:23]} {[%emt 00:00:07]} 62. Rg8+ {[%clk 00:03:56]} {[%emt
00:01:59]} Kf6 {[%clk 00:45:35]} {[%emt 00:00:18]} 63. g4 {[%clk 00:03:59]}
{[%emt 00:00:27]} Ra5 {[%clk 00:44:31]} {[%emt 00:01:35]} 64. Rb8 {[%clk
00:03:21]} {[%emt 00:01:08]} Ra4 {[%clk 00:44:39]} {[%emt 00:00:22]} 65. Kh5
{[%clk 00:02:37]} {[%emt 00:01:13]} Kg7 {[%clk 00:41:22]} {[%emt 00:03:47]} 66.
Kg5 {[%clk 00:02:13]} {[%emt 00:00:54]} Ra5+ {[%clk 00:39:45]} {[%emt
00:02:07]} 67. f5 {[%clk 00:02:00]} {[%emt 00:00:43]} exf5 {[%clk 00:40:06]}
{[%emt 00:00:09]} 68. gxf5 {[%clk 00:02:20]} {[%emt 00:00:10]} Ra7 {[%clk
00:39:05]} {[%emt 00:01:31]} 69. Re8 {[%clk 00:02:40]} {[%emt 00:00:10]} Kf7
{[%clk 00:39:12]} {[%emt 00:00:25]} 70. Re1 {[%clk 00:02:57]} {[%emt 00:00:10]}
Ra2 {[%clk 00:38:27]} {[%emt 00:01:17]} 1/2-1/2

[Event "Mistrovství Čech mládeže 2023 - HD14"]
[Site "Harrachov, Czech Republic"]
[Date "2023.10.28"]
[Round "9.4"]
[White "Křivka, Matěj"]
[Black "Švadlenka, Michal"]
[Result "1/2-1/2"]
[TimeControl "90m + 30s"]
[WhiteElo "1665"]
[BlackElo "1651"]

1. d4 {[%clk 01:30:55]} {[%emt 00:00:04]} Nf6 {[%clk 01:30:56]} {[%emt
00:00:04]} 2. c4 {[%clk 01:31:19]} {[%emt 00:00:07]} g6 {[%clk 01:31:23]}
{[%emt 00:00:04]} 3. Nc3 {[%clk 01:31:43]} {[%emt 00:00:05]} Bg7 {[%clk
01:31:47]} {[%emt 00:00:05]} 4. e4 {[%clk 01:32:03]} {[%emt 00:00:11]} d6
{[%clk 01:32:08]} {[%emt 00:00:10]} 5. f4 {[%clk 01:32:16]} {[%emt 00:00:17]}
O-O {[%clk 01:31:53]} {[%emt 00:00:45]} 6. Nf3 {[%clk 01:32:29]} {[%emt
00:00:16]} Na6 {[%clk 01:31:07]} {[%emt 00:01:16]} 7. Bd3 {[%clk 01:32:13]}
{[%emt 00:00:46]} e5 {[%clk 01:27:32]} {[%emt 00:04:05]} 8. fxe5 {[%clk
01:32:20]} {[%emt 00:00:23]} dxe5 {[%clk 01:27:53]} {[%emt 00:00:09]} 9. d5
{[%clk 01:32:16]} {[%emt 00:00:34]} c6 {[%clk 01:13:26]} {[%emt 00:14:57]} 10.
O-O {[%clk 01:29:25]} {[%emt 00:03:21]} cxd5 {[%clk 01:10:31]} {[%emt
00:03:25]} 11. cxd5 {[%clk 01:29:01]} {[%emt 00:00:54]} Nh5 {[%clk 01:05:10]}
{[%emt 00:05:51]} 12. Qe2 {[%clk 01:21:48]} {[%emt 00:07:43]} Nc5 {[%clk
00:50:54]} {[%emt 00:14:46]} 13. Bc4 {[%clk 01:16:41]} {[%emt 00:05:36]} Bg4
{[%clk 00:47:33]} {[%emt 00:03:52]} 14. h3 {[%clk 01:05:53]} {[%emt 00:11:18]}
Ng3 {[%clk 00:37:09]} {[%emt 00:10:54]} 15. Qe1 {[%clk 01:02:11]} {[%emt
00:04:12]} Bxf3 {[%clk 00:23:30]} {[%emt 00:14:09]} 16. Rxf3 {[%clk 01:01:28]}
{[%emt 00:01:13]} Nh5 {[%clk 00:23:49]} {[%emt 00:00:11]} 17. Qf2 {[%clk
01:00:13]} {[%emt 00:01:43]} Rc8 {[%clk 00:23:36]} {[%emt 00:00:45]} 18. b3
{[%clk 00:49:17]} {[%emt 00:11:26]} Nf4 {[%clk 00:17:03]} {[%emt 00:07:03]} 19.
Bb2 {[%clk 00:33:43]} {[%emt 00:16:03]} b6 {[%clk 00:14:00]} {[%emt 00:03:34]}
20. Rf1 {[%clk 00:30:05]} {[%emt 00:04:07]} Kh8 {[%clk 00:12:02]} {[%emt
00:02:30]} 21. Kh2 {[%clk 00:25:30]} {[%emt 00:05:03]} f6 {[%clk 00:11:25]}
{[%emt 00:01:07]} 22. g3 {[%clk 00:21:19]} {[%emt 00:04:42]} 1/2-1/2

[Event "Mistrovství Čech mládeže 2023 - HD14"]
[Site "Harrachov, Czech Republic"]
[Date "2023.10.28"]
[Round "9.5"]
[White "Slívová, Linda"]
[Black "Jakubše, Tamae Severína"]
[Result "0-1"]
[TimeControl "90m + 30s"]
[WhiteElo "1624"]
[BlackElo "1627"]

1. d4 {[%clk 01:30:57]} {[%emt 00:00:03]} Nf6 {[%clk 01:30:58]} {[%emt
00:00:02]} 2. c4 {[%clk 01:31:16]} {[%emt 00:00:10]} g6 {[%clk 01:31:23]}
{[%emt 00:00:05]} 3. Nc3 {[%clk 01:31:31]} {[%emt 00:00:15]} d5 {[%clk
01:31:46]} {[%emt 00:00:08]} 4. cxd5 {[%clk 01:31:40]} {[%emt 00:00:21]} Nxd5
{[%clk 01:32:10]} {[%emt 00:00:05]} 5. e4 {[%clk 01:31:39]} {[%emt 00:00:31]}
Nxc3 {[%clk 01:32:34]} {[%emt 00:00:06]} 6. bxc3 {[%clk 01:32:03]} {[%emt
00:00:06]} Bg7 {[%clk 01:33:00]} {[%emt 00:00:04]} 7. Rb1 {[%clk 01:32:21]}
{[%emt 00:00:12]} c5 {[%clk 01:32:48]} {[%emt 00:00:42]} 8. Nf3 {[%clk
01:31:27]} {[%emt 00:01:24]} O-O {[%clk 01:31:46]} {[%emt 00:01:32]} 9. Be2
{[%clk 01:28:05]} {[%emt 00:03:52]} Qa5 {[%clk 01:28:24]} {[%emt 00:03:53]} 10.
Qd2 {[%clk 01:20:11]} {[%emt 00:08:24]} a6 {[%clk 01:21:27]} {[%emt 00:07:27]}
11. O-O {[%clk 01:17:39]} {[%emt 00:03:01]} Nc6 {[%clk 01:20:42]} {[%emt
00:01:15]} 12. Bb2 {[%clk 01:12:09]} {[%emt 00:06:01]} cxd4 {[%clk 01:18:42]}
{[%emt 00:02:30]} 13. cxd4 {[%clk 01:08:25]} {[%emt 00:04:13]} Qxd2 {[%emt
00:00:31]} 14. Nxd2 {[%clk 01:08:34]} {[%emt 00:00:06]} Nxd4 {[%clk 01:18:17]}
{[%emt 00:01:11]} 15. Bc4 {[%clk 01:05:43]} {[%emt 00:03:21]} b5 {[%clk
01:08:45]} {[%emt 00:10:01]} 16. Bd5 {[%clk 01:01:37]} {[%emt 00:04:36]} Rb8
{[%clk 01:08:31]} {[%emt 00:00:45]} 17. Ba3 {[%clk 00:55:51]} {[%emt 00:06:16]}
Re8 {[%clk 01:05:28]} {[%emt 00:03:33]} 18. Bc5 {[%clk 00:46:57]} {[%emt
00:09:25]} Bb7 {[%clk 00:56:07]} {[%emt 00:09:50]} 19. Bxb7 {[%clk 00:27:21]}
{[%emt 00:20:06]} Ne2+ {[%clk 00:51:47]} {[%emt 00:04:49]} 20. Kh1 {[%clk
00:27:44]} {[%emt 00:00:07]} Rxb7 {[%clk 00:52:07]} {[%emt 00:00:10]} 21. a3
{[%clk 00:23:16]} {[%emt 00:04:58]} Rc8 {[%clk 00:46:16]} {[%emt 00:06:21]} 22.
Nb3 {[%clk 00:21:01]} {[%emt 00:02:45]} Nc3 {[%clk 00:42:26]} {[%emt 00:04:20]}
23. Rbe1 {[%clk 00:19:45]} {[%emt 00:01:47]} Na4 {[%clk 00:40:34]} {[%emt
00:02:22]} 24. Bb4 {[%clk 00:18:20]} {[%emt 00:01:54]} Bc3 {[%clk 00:39:19]}
{[%emt 00:01:44]} 25. Rc1 {[%clk 00:13:24]} {[%emt 00:05:27]} Rbc7 {[%clk
00:38:13]} {[%emt 00:01:36]} 26. Bxc3 {[%clk 00:09:16]} {[%emt 00:04:38]} Rxc3
{[%clk 00:37:11]} {[%emt 00:01:32]} 27. Rxc3 {[%clk 00:09:37]} {[%emt
00:00:08]} Rxc3 {[%clk 00:37:32]} {[%emt 00:00:09]} 28. Rb1 {[%clk 00:09:26]}
{[%emt 00:00:41]} Nb6 {[%clk 00:35:50]} {[%emt 00:02:12]} 29. g3 {[%clk
00:06:15]} {[%emt 00:03:42]} Nc4 {[%clk 00:33:31]} {[%emt 00:02:48]} 30. a4
{[%clk 00:05:58]} {[%emt 00:00:48]} bxa4 {[%clk 00:30:56]} {[%emt 00:03:06]} 31.
Nc5 {[%clk 00:05:34]} {[%emt 00:00:54]} a3 {[%clk 00:29:27]} {[%emt 00:01:58]}
32. Nxa6 {[%clk 00:04:32]} {[%emt 00:01:32]} Nd2 {[%clk 00:26:13]} {[%emt
00:03:44]} 33. Ra1 {[%clk 00:03:07]} {[%emt 00:01:55]} Nxe4 {[%clk 00:25:50]}
{[%emt 00:00:54]} 34. Ra2 {[%clk 00:02:39]} {[%emt 00:00:58]} Rb3 {[%clk
00:24:19]} {[%emt 00:02:00]} 35. Kg2 {[%clk 00:02:00]} {[%emt 00:01:09]} Nc3
{[%clk 00:24:23]} {[%emt 00:00:26]} 36. Nc5 {[%clk 00:02:14]} {[%emt 00:00:15]}
Rb5 {[%clk 00:23:41]} {[%emt 00:01:11]} 37. Rxa3 {[%clk 00:01:35]} {[%emt
00:01:11]} Rxc5 {[%clk 00:24:05]} {[%emt 00:00:07]} 38. Kf3 {[%clk 00:01:52]}
{[%emt 00:00:12]} Nd5 {[%clk 00:22:57]} {[%emt 00:01:37]} 39. Rd3 {[%clk
00:01:15]} {[%emt 00:01:07]} Rc3 {[%clk 00:23:12]} {[%emt 00:00:15]} 40. Rxc3
{[%clk 00:01:23]} {[%emt 00:00:23]} Nxc3 {[%clk 00:23:36]} {[%emt 00:00:06]} 41.
Ke3 {[%clk 00:01:46]} {[%emt 00:00:07]} Nd5+ {[%clk 00:23:58]} {[%emt
00:00:08]} 42. Kd4 {[%clk 00:01:56]} {[%emt 00:00:19]} Nf6 {[%clk 00:24:15]}
{[%emt 00:00:13]} 43. h3 {[%clk 00:02:17]} {[%emt 00:00:09]} Kg7 {[%clk
00:24:27]} {[%emt 00:00:19]} 44. Ke5 {[%clk 00:02:27]} {[%emt 00:00:20]} Nd7+
{[%clk 00:24:39]} {[%emt 00:00:17]} 45. Kf4 {[%clk 00:02:48]} {[%emt 00:00:10]}
Kf6 {[%clk 00:25:02]} {[%emt 00:00:07]} 46. Ke4 {[%clk 00:02:41]} {[%emt
00:00:36]} Nc5+ {[%clk 00:24:08]} {[%emt 00:01:24]} 47. Ke3 {[%clk 00:02:17]}
{[%emt 00:00:55]} h5 {[%clk 00:24:04]} {[%emt 00:00:34]} 0-1

[Event "Mistrovství Čech mládeže 2023 - HD14"]
[Site "Harrachov, Czech Republic"]
[Date "2023.10.28"]
[Round "9.6"]
[White "Krautschneider, Daniel Jan"]
[Black "Borecký, Andrej"]
[Result "1-0"]
[TimeControl "90m + 30s"]
[WhiteElo "1669"]
[BlackElo "1341"]

1. e4 {[%clk 01:30:47]} {[%emt 00:00:12]} c5 {[%clk 01:30:56]} {[%emt
00:00:05]} 2. Nf3 {[%clk 01:31:13]} {[%emt 00:00:04]} Nc6 {[%clk 01:31:21]}
{[%emt 00:00:04]} 3. d4 {[%clk 01:31:40]} {[%emt 00:00:03]} cxd4 {[%clk
01:31:47]} {[%emt 00:00:04]} 4. Nxd4 {[%clk 01:32:05]} {[%emt 00:00:05]} Nf6
{[%clk 01:32:07]} {[%emt 00:00:11]} 5. Nc3 {[%clk 01:32:30]} {[%emt 00:00:05]}
e5 {[%clk 01:32:31]} {[%emt 00:00:06]} 6. Ndb5 {[%clk 01:32:57]} {[%emt
00:00:04]} d6 {[%clk 01:32:57]} {[%emt 00:00:04]} 7. Nd5 {[%clk 01:33:22]}
{[%emt 00:00:05]} Nxd5 {[%clk 01:29:11]} {[%emt 00:04:16]} 8. exd5 {[%clk
01:33:45]} {[%emt 00:00:07]} Ne7 {[%clk 01:28:34]} {[%emt 00:01:08]} 9. c4
{[%clk 01:34:00]} {[%emt 00:00:14]} f5 {[%clk 01:22:15]} {[%emt 00:06:49]} 10.
Qa4 {[%clk 01:30:39]} {[%emt 00:03:51]} Kf7 {[%clk 01:21:01]} {[%emt 00:01:43]}
11. Be2 {[%clk 01:30:34]} {[%emt 00:00:35]} g6 {[%clk 01:20:16]} {[%emt
00:01:15]} 12. O-O {[%clk 01:28:46]} {[%emt 00:02:18]} Bg7 {[%clk 01:17:37]}
{[%emt 00:03:10]} 13. Qa3 {[%clk 01:28:31]} {[%emt 00:00:45]} Rf8 {[%clk
01:16:30]} {[%emt 00:01:37]} 14. Nxd6+ {[%clk 01:28:43]} {[%emt 00:00:18]} Kg8
{[%clk 01:16:52]} {[%emt 00:00:09]} 15. Bg5 {[%clk 01:25:01]} {[%emt 00:04:11]}
h6 {[%clk 01:14:50]} {[%emt 00:02:31]} 16. Nxc8 {[%clk 01:23:23]} {[%emt
00:02:08]} hxg5 {[%clk 01:13:04]} {[%emt 00:02:16]} 17. Nxe7+ {[%clk 01:23:34]}
{[%emt 00:00:19]} Kh7 {[%clk 01:13:29]} {[%emt 00:00:06]} 18. d6 {[%clk
01:23:23]} {[%emt 00:00:41]} Rf6 {[%clk 01:13:50]} {[%emt 00:00:09]} 19. c5
{[%clk 01:23:32]} {[%emt 00:00:21]} f4 {[%clk 01:13:58]} {[%emt 00:00:21]} 20.
Bd3 {[%clk 01:23:29]} {[%emt 00:00:33]} b6 {[%clk 01:13:40]} {[%emt 00:00:49]}
21. b4 {[%clk 01:23:50]} {[%emt 00:00:09]} a5 {[%clk 01:14:00]} {[%emt
00:00:10]} 22. Be4 {[%clk 01:24:01]} {[%emt 00:00:19]} 1-0

[Event "Mistrovství Čech mládeže 2023 - HD14"]
[Site "Harrachov, Czech Republic"]
[Date "2023.10.28"]
[Round "9.7"]
[White "Ježek, Jakub"]
[Black "Bělaška, Václav"]
[Result "1-0"]
[TimeControl "90m + 30s"]
[WhiteElo "1642"]
[BlackElo "1666"]

1. d4 {[%clk 01:30:50]} {[%emt 00:00:09]} e5 {[%clk 01:30:54]} {[%emt
00:00:07]} 2. d5 {[%clk 01:30:27]} {[%emt 00:00:52]} f5 {[%clk 01:29:22]}
{[%emt 00:02:02]} 3. c4 {[%clk 01:30:27]} {[%emt 00:00:29]} Bc5 {[%clk
01:28:17]} {[%emt 00:01:36]} 4. Nc3 {[%clk 01:30:18]} {[%emt 00:00:38]} Nf6
{[%clk 01:27:55]} {[%emt 00:00:53]} 5. Nf3 {[%clk 01:27:03]} {[%emt 00:03:43]}
d6 {[%clk 01:20:22]} {[%emt 00:08:04]} 6. Bg5 {[%clk 01:22:31]} {[%emt
00:05:02]} a6 {[%clk 01:19:32]} {[%emt 00:01:21]} 7. e4 {[%clk 01:20:43]}
{[%emt 00:02:17]} h6 {[%clk 01:18:18]} {[%emt 00:01:44]} 8. Bxf6 {[%clk
01:21:05]} {[%emt 00:00:09]} Qxf6 {[%clk 01:18:40]} {[%emt 00:00:07]} 9. Bd3
{[%clk 01:19:28]} {[%emt 00:02:06]} f4 {[%clk 01:17:14]} {[%emt 00:01:57]} 10.
Qc2 {[%clk 01:16:39]} {[%emt 00:03:18]} g5 {[%clk 01:15:16]} {[%emt 00:02:29]}
11. h3 {[%clk 01:12:58]} {[%emt 00:04:09]} Nd7 {[%clk 01:10:48]} {[%emt
00:05:00]} 12. a3 {[%clk 01:09:49]} {[%emt 00:03:38]} h5 {[%clk 01:08:32]}
{[%emt 00:02:46]} 13. O-O-O {[%clk 00:55:24]} {[%emt 00:14:55]} Nf8 {[%clk
01:01:10]} {[%emt 00:07:52]} 14. b4 {[%clk 00:53:06]} {[%emt 00:02:48]} Ba7
{[%clk 01:00:19]} {[%emt 00:01:21]} 15. c5 {[%clk 00:46:23]} {[%emt 00:07:12]}
b5 {[%clk 00:52:49]} {[%emt 00:08:01]} 16. cxd6 {[%clk 00:37:59]} {[%emt
00:08:54]} Qxd6 {[%clk 00:48:01]} {[%emt 00:05:18]} 17. Bxb5+ {[%clk 00:33:20]}
{[%emt 00:05:08]} Bd7 {[%clk 00:45:50]} {[%emt 00:02:41]} 18. Bxd7+ {[%clk
00:33:23]} {[%emt 00:00:26]} Nxd7 {[%clk 00:45:34]} {[%emt 00:00:46]} 19. Nxg5
{[%clk 00:33:07]} {[%emt 00:00:47]} c5 {[%clk 00:44:15]} {[%emt 00:01:49]} 20.
b5 {[%clk 00:30:38]} {[%emt 00:02:58]} axb5 {[%clk 00:43:59]} {[%emt 00:00:47]}
21. Nxb5 {[%clk 00:30:52]} {[%emt 00:00:15]} Qb6 {[%clk 00:44:14]} {[%emt
00:00:16]} 22. Ne6 {[%clk 00:30:27]} {[%emt 00:00:55]} Bb8 {[%clk 00:44:41]}
{[%emt 00:00:04]} 23. a4 {[%clk 00:24:00]} {[%emt 00:06:56]} Rg8 {[%clk
00:44:32]} {[%emt 00:00:40]} 24. d6 {[%emt 00:04:10]} Ra5 {[%clk 00:40:20]}
{[%emt 00:04:32]} 25. Qc4 {[%clk 00:15:47]} {[%emt 00:05:14]} Rxg2 {[%clk
00:40:14]} {[%emt 00:00:35]} 26. Rhg1 {[%clk 00:15:29]} {[%emt 00:00:48]} Rxg1
{[%clk 00:40:34]} {[%emt 00:00:11]} 27. Rxg1 {[%clk 00:15:56]} {[%emt
00:00:02]} Bxd6 {[%clk 00:40:53]} {[%emt 00:00:12]} 28. Rg8+ {[%clk 00:14:50]}
{[%emt 00:01:35]} Bf8 {[%clk 00:29:42]} {[%emt 00:11:41]} 29. Nbc7+ {[%clk
00:11:50]} {[%emt 00:03:30]} 1-0